Cogmind - Beta 9.6 @@@ ROGUE MODE // 2020.09.07 @ 08:28:07 Player: Calanor Result: Destroyed by G-34 Mercenary with Small Laser Performance ------------- Evolutions (0) 0 Regions Visited (1) 200 Robots Destroyed (6) 30 Value Destroyed (141) 141 Prototype IDs (0) 0 Alien Tech Used (0) 0 Bonus (0) 0 TOTAL SCORE: 371 Bonus ------- None Cogmind --------- Core Integrity 0/250 Matter 290/300 Energy 99/100 System Corruption 0% Temperature Cool (6) Movement Core (550) Ox10 Location -10/Materials Parts ------- > --- POWER (1) -------- (None) > --- PROPULSION (2) --- (None) > --- UTILITY (2) ------ High-capacity Storage Unit Hacking Suite > --- WEAPON (2) ------- (None) > --- INVENTORY (12) --- Small Storage Unit Peak State ------------ > --- POWER ------------ Ion Engine > --- PROPULSION ------- Aluminum Leg Aluminum Leg > --- UTILITY ---------- Small Storage Unit Hacking Suite > --- WEAPON ----------- EM Pulse Gun Medium Laser > --- INVENTORY -------- Light Ion Engine [Rating: 9] Favorites ----------- Power Ion Engine Engine Ion Engine Propulsion Aluminum Leg Leg Aluminum Leg Utility Small Storage Unit Storage Small Storage Unit Hackware Hacking Suite Weapon Medium Laser Energy Gun Medium Laser Build | -11 -10 ------- Run | Scr Mat Slots Evolved . | . . Power . | . . Propulsion . | . . Utility . | . . Weapon . | . . Parts Attached 12 | 7 5 Power 3 | 2 1 Engine 3 | 2 1 Core . | . . Reactor . | . . Propulsion 3 | 2 1 Treads . | . . Leg 3 | 2 1 Wheel . | . . Hover . | . . Flight . | . . Utility 3 | 1 2 Device . | . . Storage 2 | 1 1 Processor . | . . Hackware 1 | . 1 Protection . | . . Artifact . | . . Weapon 3 | 2 1 Energy Gun 3 | 2 1 Energy Cannon . | . . Ballistic Gun . | . . Ballistic Cannon . | . . Launcher . | . . Special Weapon . | . . Impact Weapon . | . . Slashing Weapon . | . . Piercing Weapon . | . . Special Melee Weapon . | . . Unidentified Prototypes . | . . Parts Lost 7 | . 7 Power 2 | . 2 Propulsion 2 | . 2 Utility . | . . Weapon 3 | . 3 Highest Loss Streak 7 | . 7 Average Slot Usage (%) 72 | . 72 Engine 11 | . 11 Leg 19 | . 19 Storage 14 | . 14 Hackware 8 | . 8 Energy Gun 17 | . 17 Naked Turns . | . . Heaviest Build 32 | 13 32 Greatest Support 20 | 20 20 Greatest Overweight (x) 10 | . 10 Average Overweight (x) . | . . Largest Inventory Capacity 12 | 6 12 Average Capacity 5 | 5 6 Most Carried 3 | 3 2 Average Carried . | . . Final Capacity 12 | 6 12 Final Carried 1 | 1 1 Class Distribution -------------------- 100% | Mutant Dominant Class ---------------- Mutant | -10/Materials Resources | -11 -10 ----------- Run | Scr Mat Matter Collected 301 | 270 31 Remotely . | . . Salvage Created 248 | 106 142 Parts 17 | 3 14 Haulers Intercepted . | . . Recyclers Shooed . | . . Parts Field Recycled . | . . Retrieved Matter . | . . Parts Self-Destructed . | . . Prevented . | . . Kills | -11 -10 ------- Run | Scr Mat Combat Hostiles Destroyed 3 | . 3 Guns 3 | . 3 Classes Destroyed 4 | 2 2 Tunneler 1 | 1 . Recycler 1 | 1 . Operator 1 | . 1 Grunt 3 | . 3 Best Kill Streak 2 | 1 2 Combat Bots Only 2 | . 2 Max Kills in Single Turn 1 | 1 1 Gunslinging . | . . Exploded . | . . Melee . | . . Uniques/NPCs Destroyed . | . . Combat | -11 -10 -------- Run | Scr Mat Damage Taken 759 | 7 752 Core 255 | . 255 Absorbed by Shields . | . . Core Remaining (%) 100 | 100 . Volleys Fired 38 | 16 22 Largest 2 | 2 2 Hottest 90 | 90 90 Shots Fired 61 | 32 29 Gun 61 | 32 29 Cannon . | . . Launcher . | . . Special . | . . Kinetic . | . . Thermal 38 | 16 22 Explosive . | . . Electromagnetic 23 | 16 7 Robot Hit Streak 8 | 5 8 Robot Miss Streak 6 | 6 3 Penetration Max . | . . Secondary Targets . | . . Shots Hit Robots 35 | 18 17 Core Hits 12 | 3 9 Critical Hits . | . . Critical Kills . | . . Critical Parts Destroyed . | . . Melee Attacks . | . . Impact . | . . Slashing . | . . Piercing . | . . Sneak Attacks . | . . Combat Hostiles . | . . Follow-up Attacks . | . . Damage Inflicted 424 | 224 200 Guns 384 | 193 191 Cannons . | . . Explosions 31 | 31 . Melee . | . . Ramming 9 | . 9 Kinetic . | . . Thermal 247 | 104 143 Explosive . | . . Electromagnetic 168 | 120 48 Impact . | . . Slashing . | . . Piercing . | . . Highest Corruption . | . . Average Corruption . | . . Corruption Purged . | . . Overload Shots . | . . Overflow Damage . | . . Projectiles . | . . Explosions . | . . Melee . | . . Knockbacks . | . . Impact . | . . Kinetic . | . . Secondary . | . . Self-Inflicted Damage 10 | 7 3 Shots 1 | 1 . Rammed 2 | . 2 Targets Rammed 3 | . 3 Kicked 1 | . 1 Crushed . | . . Highest Temperature 349 | 349 190 Average Temperature 123 | 189 55 Received Heat Transfer 408 | . 408 Effects 2 | 2 . Shutdowns 1 | 1 . Energy Bleed 1 | 1 . Siege Activations . | . . Robots Corrupted . | . . Combat Hostiles . | . . Parts Fried 1 | 1 . Impact Corruptions . | . . Robots Melted . | . . Combat Hostiles . | . . Parts Melted 1 | . 1 Heat Transferred 621 | 272 349 Parts Sabotaged . | . . Parts Stolen . | . . Parts Stripped . | . . Power Chain Reactions 1 | 1 . Missiles Intercepted . | . . Alert | -11 -10 ------- Run | Scr Mat Peak Influence 56 | 10 56 Average Influence 18 | 6 29 Maximum Alert Level . | . . Low Security (%) 100 | 100 100 Level 1 . | . . Level 2 . | . . Level 3 . | . . Level 4 . | . . Level 5 . | . . High Security . | . . Max Security . | . . Squads Dispatched 3 | . 3 Investigation 1 | . 1 Extermination . | . . Reinforcement 2 | . 2 Assault . | . . Garrison . | . . Intercept . | . . Construction Impeded . | . . Haulers Reinforced . | . . Stealth | -11 -10 --------- Run | Scr Mat Distress Signals 1 | . 1 Communications Jammed . | . . Distress Signals . | . . Times Spotted 8 | . 8 Peak Tracking Total 5 | . 5 Tactical Retreats . | . . Traps | -11 -10 ------- Run | Scr Mat Traps Triggered . | . . Indirectly . | . . Trap Hack Attempts . | . . Triggered . | . . Disarmed . | . . Reprogrammed . | . . Reused . | . . Traps Extracted . | . . Installed . | . . Triggered . | . . Machines | -11 -10 ---------- Run | Scr Mat Machines Disabled 1 | . 1 Max in Single Turn 1 | . 1 Machines Sabotaged . | . . Garrisons Compromised . | . . Overloaded Fab Kills . | . . Fab Network Shutdowns . | . . Hacking | -11 -10 --------- Run | Scr Mat Machines Accessed 1 | . 1 Terminals . | . . Fabricators . | . . Repair Stations . | . . Recycling Units 1 | . 1 Scanalyzers . | . . Garrison Access . | . . Total Hacks 3 | . 3 Successful 1 | . 1 Failed 2 | . 2 Catastrophic 1 | . 1 Database Lockouts . | . . Manual . | . . Terminals . | . . Fabricators . | . . Repair Stations . | . . Recycling Units 3 | . 3 Scanalyzers . | . . Garrison Access . | . . Terminal Hacks . | . . Fabricator Hacks . | . . Repair Station Hacks . | . . Recycling Unit Hacks 1 | . 1 Report Inventory 1 | . 1 Scanalyzer . | . . Garrison Access Hacks . | . . Unauthorized Hacks . | . . Terminals . | . . Fabricators . | . . Repair Stations . | . . Recycling Units . | . . Scanalyzers . | . . Garrison Access . | . . Data Cores Recovered . | . . Used . | . . Hacking Detections 1 | . 1 Full Trace Events 1 | . 1 Feedback Events . | . . Feedback Blocked . | . . Robot Schematics Acquired . | . . Robots Built . | . . Matter . | . . Time . | . . Total Robot Build Rating . | . . Part Schematics Acquired . | . . Parts Built . | . . Matter . | . . Time . | . . Total Part Build Rating . | . . Parts Repaired . | . . Time . | . . Parts Recycled . | . . Recycled Matter . | . . Retrieved Matter . | . . Retrieved Components . | . . Parts Scanalyzed . | . . Part Schematics Acquired . | . . Parts Damaged . | . . Bothacking | -11 -10 ------------ Run | Scr Mat Used RIF Installer . | . . Robots Hacked . | . . Non-combat . | . . Combat . | . . Robot Hacks Applied . | . . Relay Couplers Released . | . . Robots Rewired . | . . Allies Hacked . | . . Hacks Repelled . | . . Allies | -11 -10 -------- Run | Scr Mat Total Allies . | . . Largest Group . | . . Highest-Rated Group . | . . Highest-Rated Ally . | . . Total Orders . | . . Ally Attacks . | . . Total Damage . | . . Kills . | . . Allies Corrupted . | . . Allies Melted . | . . Intel | -11 -10 ------- Run | Scr Mat Robot Analysis Total . | . . Derelict Logs Recovered . | . . Drone Launches . | . . Drone Recoveries . | . . Exploration | -11 -10 ------------- Run | Scr Mat Turns Passed 358 | 173 185 Spaces Moved 193 | 97 96 Core 29 | 8 21 Treads . | . . Legs 164 | 89 75 Wheels . | . . Hover . | . . Flight . | . . Fastest Speed 50 | 50 100 Average Speed 119 | 114 125 Slowest Speed 550 | 120 550 Overloaded Moves . | . . Propulsion Burnouts . | . . Robots Hopped . | . . Cave-ins Triggered . | . . Exploration Rate (%) 11 | 7 15 Regions Visited 1 Branch Regions . Pre-discovered Areas . | . . Known Exits Taken . | . . Unknown Exits Taken 1 | 1 . Scrap Searched . | . . Spaces Dug . | . . Terrain Destroyed 6 | 6 . Melee . | . . Projectile . | . . AOE 6 | 6 . Actions | -11 -10 --------- Run | Scr Mat Total 257 | 126 131 Wait 1 | . 1 Move 192 | 96 96 Hop . | . . Pick Up 10 | 7 3 Fast Attach . | . . Attach 9 | 6 3 Detach . | . . Swap 3 | 1 2 Drop 1 | . 1 Fire 38 | 16 22 Melee . | . . Ram . | . . Kick 3 | . 3 Crush . | . . Escape Stasis . | . . Rewire . | . . Trap . | . . Miscellaneous . | . . Route ------- -11/Scrapyard -10/Materials History --------- Turn | Location | Event 15 | -11/Scrapyard | Discovered new exit (range 14) 174 | -11/Scrapyard | Entered Materials 295 | -10/Materials | Core integrity fell below 50% 321 | -10/Materials | Build established: Mutant 334 | -10/Materials | Core integrity fell below 20% 359 | -10/Materials | Destroyed by G-34 Mercenary with Small Laser Last Messages --------------- Aluminum Leg destroyed. Slammed into G-34 Mercenary. Ion Engine destroyed. Acquired Sml. Laser. G-34 Mercenary destroyed. R-06 Scavenger collects Sml. Laser. R-06 Scavenger collects Heat Sink. Aluminum Leg destroyed. Aluminum Leg melted. G-34 Mercenary destroyed. Acquired 15 matter. R-06 Scavenger inserts Sml. Laser into recycling unit. R-06 Scavenger inserts Heat Sink into recycling unit. Sml. Laser destroyed. R-06 Scavenger inserts Lgt. Ion Engine into recycling unit. R-06 Scavenger inserts Hover Unit into recycling unit. Lgt. Ion Engine destroyed. R-06 Scavenger collects Aluminum Leg. R-06 Scavenger collects Ion Engine. Acquired Hcp. Storage Unit. Map ----- +----------------------------------------------------+ | ?????????????????????????????????????????? | | ?????????????????????????????????????????? | | ?????????????????????????????????????????? | | ?????????????????????????????????????????? | | ?????????????????????????????????????????? | | ?????????????????????????????????????????? | | ?????????????????????????????????????????? | | ?????????????????????????????????????????? | | ?????????????????????????????????????????? | | ?????????????????????????????????????????? | | ?????????????????????????????????????????? | | ?????????????????????????????????????????? | | ?????????????????????????????????????????? | | ?????????????????????????????????????????? | | ?????????????????????????????????????????? | | ?????????????????????????????????????????? | | ?????????????????????????????????????????? | | ?????????????????????????????????????????? | | ?????????????????????###########?????????? | | ?????????????????????# #?????????? | | ?????????????????????# """ """ +?????????? | | ?????????????????????# """ """ #?????????? | | ?????????????????????# """ """ #?????????? | | ?????????????????#???# #?????????? | | ?????????????????# ??# #?????????? | | ?????????????????# ?# @ "T" #?????????? | | ?????????????????# # """ #?????????? | | ?????????????????# ###g#######?????????? | | ?????????????????# ^g ######???????? | | ?????????????????# ^ #???????? | | ?????????????????# #### #???????? | | ?????????????????# ^ """ #????????????? | | ?????????????????# """"" #????????????? | | ?????????????????# """" #????????????? | | ?????????????????# """" #????????????? | | ?????????????????# """ #????????????? | | ?????????????????# #????????????? | | ?????????????????# #????????????? | | ?????????????????# #????????????? | | ?????????????????# #????????????? | | ?????????????????# #????????????? | | ????? ######+#### ####?????????? | | ???? " " #?????????? | | ???? == "Y" #?????????? | | ???? %% *""" #?????????? | | ???????######+######+######+####?????????? | | ???????????????#%=*!%=! #? ????????????? | | ???????????????# T = #? = ???????????? | | ???????????????# = ! #? ??????????? | | ???????????????#% #?"""" ?????????? | +----------------------------------------------------+ Best States ------------- Heat Dissipation 25 Energy Generation 10 Energy Capacity 250 Matter Stores 300 Matter Capacity 300 Sight Range 16 Terrain Scan Density 10 Evasion (%) 40 Offensive Hacking 10 Item Schematics ----------------- None Robot Schematics ------------------ None Fabricated ------------ Nothing Alien Tech Used ----------------- None Achievements -------------- None Challenges ------------ None Game ------ Seed LargeLightpackWheel Manual? 0 Play Time 00:06:12 Cumulative 5.3 hours Start 2020.09.07 @ 08:19:59 End 2020.09.07 @ 08:28:07 Sessions 1 Manual Loads 0 Difficulty Rogue Special Mode None Game No. 5 Rogue 5 Adventurer 0 Explorer 0 Win Type - Total 0 Types 0/0/0/0/0/0/0 Lore% 2 Gallery% 6 Achievement% 6 Wizard Run 0 Options --------- ASCII 0 Keyboard 0 Movement Numpad Keybinds 0 Fullscreen 1 Font 24/Terminus Map View 76x50 Tactical HUD 0 Map Filters NONE Filters NONE Steam 1 RUN: e67420c6-fa1b-4a5e-aa96-5e4fcb2be375